bitfinex-derivatives/quotes_BTCF0:USTF0_20250919
["timestamp","ask_amount","ask_price","bid_price","bid_amount"]
[1758299095357,0.1021275,116040.0,116030.0,1.60001733]
[1758299095759,0.8857275,116040.0,116030.0,1.60001733]
[1758299095959,0.1021275,116040.0,116030.0,1.60001733]
[1758299096157,0.8857275,116040.0,116030.0,1.60001733]
[1758299099463,0.8857275,116040.0,116030.0,0.92622549]
[1758299099655,0.8857275,116040.0,116030.0,1.60001733]
[1758299104864,0.8856875,116040.0,116030.0,1.60001733]
[1758299108866,0.8856875,116040.0,116030.0,0.92622549]
[1758299109062,0.8856875,116040.0,116030.0,1.51387243]
[1758299109261,0.8856875,116040.0,116030.0,1.17697651]
[1758299109460,1.22258342,116040.0,116030.0,1.17697651]
[1758299109663,0.8856875,116040.0,116030.0,1.26312141]
[1758299110361,1.80947934,116040.0,116030.0,0.84008059]
[1758299110866,1.80947934,116040.0,116030.0,0.47928059]
[1758299112266,1.80947934,116040.0,116030.0,0.37465]
[1758299112471,1.02591934,116040.0,116030.0,0.37465]
[1758299112672,1.80939934,116040.0,116030.0,0.37465]
[1758299115174,1.80943934,116040.0,116030.0,0.37465]
[1758299120372,1.80947934,116040.0,116030.0,0.37465]
[1758299120676,1.80943934,116040.0,116030.0,0.37465]
[1758299121478,2.50713526,116040.0,116030.0,0.01385]
[1758299121678,2.17023934,116040.0,116030.0,0.01385]
[1758299122178,1.38671934,116040.0,116030.0,0.01385]
[1758299122377,2.17027934,116040.0,116030.0,0.01385]
[1758299122578,2.17027934,116040.0,116030.0,0.00985]
[1758299122778,2.17327934,116040.0,116030.0,0.00785]
[1758299124375,1.38971934,116040.0,116030.0,0.00785]
[1758299124570,2.17327934,116040.0,116030.0,0.00785]
[1758299124976,1.38971934,116040.0,116030.0,0.00785]
[1758299125177,2.17327934,116040.0,116030.0,0.00785]
[1758299127177,1.38971934,116040.0,116030.0,0.00785]
[1758299127378,2.17327934,116040.0,116030.0,0.00785]
[1758299129883,2.17368846,116040.0,116030.0,0.00785]
[1758299131183,1.39012846,116040.0,116030.0,0.00785]
[1758299131586,2.17368846,116040.0,116030.0,0.00785]
[1758299132087,0.7159275,116040.0,116030.0,0.00785]
[1758299132287,2.17368846,116040.0,116030.0,0.00785]
[1758299133391,2.17368846,116040.0,116030.0,1e-07]
[1758299133782,0.1021348,116030.0,116020.0,0.3608]
[1758299133982,0.45662811,116030.0,116020.0,0.3608]
[1758299135493,0.45762811,116030.0,116020.0,0.3608]
[1758299135986,1.24118811,116030.0,116020.0,0.3608]
[1758299136383,0.45762811,116030.0,116020.0,0.3608]
[1758299136585,1.24118811,116030.0,116020.0,0.3608]
[1758299138388,0.45762811,116030.0,116020.0,0.3608]
[1758299138589,1.24118811,116030.0,116020.0,0.38373]
[1758299138795,1.24118811,116030.0,116020.0,0.39739]
[1758299138996,0.90408763,116030.0,116020.0,0.39739]
[1758299139193,1.24118811,116030.0,116020.0,0.39739]
[1758299139595,0.45762811,116030.0,116020.0,0.39739]
[1758299139795,1.24118811,116030.0,116020.0,0.39739]
[1758299140292,0.12052763,116030.0,116020.0,0.39739]
[1758299140493,0.90408763,116030.0,116020.0,0.73449048]
[1758299140693,0.90408763,116030.0,116020.0,0.98449048]
[1758299142398,0.12052763,116030.0,116020.0,0.98449048]
[1758299142601,0.90408763,116030.0,116020.0,0.98449048]
[1758299145902,0.01839283,116030.0,116020.0,1.07064278]
[1758299146101,0.80195283,116030.0,116020.0,1.07064278]
[1758299147403,0.88709773,116030.0,116020.0,1.07064278]
[1758299147602,0.88709773,116030.0,116020.0,1.07164278]
[1758299148498,0.88709773,116030.0,116020.0,1.07264278]
[1758299151706,0.88709773,116030.0,116020.0,1.34234278]
[1758299162210,0.88709773,116030.0,116020.0,1.25619048]
[1758299163713,0.8697049,116030.0,116020.0,1.25619048]
[1758299164220,0.8697049,116030.0,116020.0,1.34234278]
[1758299164715,0.8695849,116030.0,116020.0,1.34234278]
[1758299165214,0.0861449,116030.0,116020.0,1.34234278]
[1758299165423,0.8695849,116030.0,116020.0,1.34234278]
[1758299167718,0.0861449,116030.0,116020.0,1.34234278]
[1758299167918,0.8695849,116030.0,116020.0,1.34234278]
[1758299177118,0.0861449,116030.0,116020.0,1.34234278]
[1758299177423,0.8695449,116030.0,116020.0,1.34234278]
[1758299185128,0.8695449,116030.0,116020.0,1.0052423]
[1758299185325,0.8695449,116030.0,116020.0,1.34234278]
[1758299187028,0.8855349,116030.0,116020.0,0.64939]
[1758299187217,1.24014748,116030.0,116020.0,0.39939]
[1758299187420,1.49014748,116030.0,116020.0,0.39939]
[1758299188928,1.153047,116030.0,116020.0,0.39939]
[1758299189124,1.49014748,116030.0,116020.0,0.39939]
[1758299191824,1.49010048,116030.0,116020.0,0.73644348]
[1758299196030,1.49010048,116030.0,116020.0,0.39939]
[1758299196229,1.49010048,116030.0,116020.0,0.73644348]
[1758299197237,1.49010048,116030.0,116020.0,0.39939]
[1758299197436,1.49010048,116030.0,116020.0,0.73644348]
[1758299199442,1.24010048,116030.0,116020.0,0.73644348]
[1758299200235,1.24010048,116030.0,116020.0,0.39939]
[1758299205250,0.45670048,116030.0,116020.0,0.39939]
[1758299205452,0.903047,116030.0,116020.0,0.39939]
[1758299205651,1.24010048,116030.0,116020.0,0.39939]
[1758299207251,1.24010048,116030.0,116020.0,0.73644348]
[1758299207847,1.24010048,116030.0,116020.0,0.39939]
[1758299208753,1.24010048,116030.0,116020.0,0.37646]
[1758299209243,1.24010048,116030.0,116020.0,0.39859]
[1758299212556,0.45670048,116030.0,116020.0,0.73564348]
[1758299212761,1.24006048,116030.0,116020.0,0.73564348]
[1758299213065,0.45670048,116030.0,116020.0,0.73564348]
[1758299213268,1.24006048,116030.0,116020.0,0.73564348]
[1758299213959,0.45670048,116030.0,116020.0,0.73564348]
[1758299215055,1.24006048,116030.0,116020.0,1.07269696]
[1758299217357,0.119647,116030.0,116020.0,1.07269696]
[1758299217662,1.24006048,116030.0,116020.0,1.07269696]
[1758299219464,0.119647,116030.0,116020.0,1.07269696]
[1758299219657,1.24006048,116030.0,116020.0,1.07269696]
[1758299221468,0.903007,116030.0,116020.0,1.07269696]
[1758299221659,1.24006048,116030.0,116020.0,1.07269696]
[1758299223566,0.119647,116030.0,116020.0,1.07269696]
[1758299223870,0.45670048,116030.0,116020.0,1.07269696]
[1758299224167,1.24002048,116030.0,116020.0,1.07269696]
[1758299224368,0.119647,116030.0,116020.0,1.07269696]
[1758299224568,0.902967,116030.0,116020.0,1.07269696]
[1758299224869,0.103657,116030.0,116020.0,1.40884926]
[1758299225069,0.886977,116030.0,116020.0,1.40884926]
[1758299225665,0.103657,116030.0,116020.0,1.74590274]
[1758299225865,0.886977,116030.0,116020.0,2.01560274]
[1758299226068,0.886977,116030.0,116020.0,1.67854926]
[1758299237880,0.103657,116030.0,116020.0,1.67854926]
[1758299238180,0.886897,116030.0,116020.0,1.67854926]
[1758299251386,0.886817,116030.0,116020.0,1.67854926]
[1758299251800,0.886817,116030.0,116020.0,1.34134705]
[1758299252388,0.0861376,116040.0,116030.0,0.1220349]
[1758299252584,0.8692976,116040.0,116030.0,0.84004891]
[1758299254690,0.8702976,116040.0,116030.0,0.84004891]
[1758299255588,0.8702976,116040.0,116030.0,1.1800266]
[1758299255790,0.8692976,116040.0,116030.0,1.1800266]
[1758299255986,0.8692976,116040.0,116030.0,1.1810266]
[1758299261897,0.8692976,116040.0,116030.0,1.1810266]
[1758299262890,0.0861376,116040.0,116030.0,1.1810266]
[1758299263095,0.8692176,116040.0,116030.0,1.51793135]
[1758299265092,0.8692176,116040.0,116030.0,1.1810266]
[1758299267601,0.8692176,116040.0,116030.0,1.51793135]
[1758299280113,0.8852076,116040.0,116030.0,0.84412185]
[1758299280315,0.8852076,116040.0,116030.0,1.1810266]
[1758299281711,0.8692176,116040.0,116030.0,1.1810266]
[1758299283009,0.8692176,116040.0,116030.0,1.33545948]
[1758299285413,0.8692176,116040.0,116030.0,1.1810266]
[1758299285816,0.8852076,116040.0,116030.0,0.84412185]
[1758299286117,0.8852076,116040.0,116030.0,1.1810266]
[1758299286417,0.8692176,116040.0,116030.0,1.1810266]
[1758299287318,0.0861376,116040.0,116030.0,1.51793135]
[1758299287518,0.8689776,116040.0,116030.0,1.51793135]
[1758299287919,0.8689776,116040.0,116030.0,1.67236423]
[1758299291222,0.8689776,116040.0,116030.0,1.33545948]
[1758299294229,0.8689776,116040.0,116030.0,1.1810266]
[1758299301739,0.8849676,116040.0,116030.0,0.84412185]
[1758299301937,0.8849676,116040.0,116030.0,1.1810266]
[1758299302628,0.8689776,116040.0,116030.0,1.1810266]
[1758299304333,0.8688576,116040.0,116030.0,1.1810266]
[1758299305039,0.0861376,116040.0,116030.0,1.51793135]
[1758299305237,0.8688576,116040.0,116030.0,1.51793135]
[1758299308944,0.8688576,116040.0,116030.0,1.67236423]
[1758299309442,0.0861376,116040.0,116030.0,1.67236423]
[1758299309634,0.6114176,116040.0,116030.0,1.67236423]
[1758299310242,0.0861376,116040.0,116030.0,1.67236423]
[1758299310436,0.6578976,116040.0,116030.0,1.67236423]
[1758299311041,0.0861376,116040.0,116030.0,1.67236423]
[1758299312444,0.11947266,116060.0,116050.0,0.1212203]
[1758299312646,0.90215266,116060.0,116050.0,1.17972505]
[1758299313741,0.90215266,116060.0,116050.0,1.51634842]
[1758299314051,0.90515266,116060.0,116050.0,1.51634842]
[1758299314350,0.90615266,116060.0,116050.0,1.51634842]
[1758299315148,0.90615266,116060.0,116050.0,1.43021812]
[1758299315949,0.90615266,116060.0,116050.0,1.43876141]
[1758299316344,0.90615266,116060.0,116050.0,1.10199735]
[1758299320155,1.82968078,116060.0,116050.0,0.73014329]
[1758299320348,1.82968078,116060.0,116050.0,0.7216]
[1758299320849,0.1021202,116050.0,116040.0,0.97512406]
[1758299321055,0.44887426,116050.0,116040.0,0.97512406]
[1758299322750,0.44987426,116050.0,116040.0,0.97512406]
[1758299323756,0.44987426,116050.0,116040.0,0.70542406]
[1758299323950,0.69987426,116050.0,116040.0,0.36866]
[1758299324155,0.69987426,116050.0,116040.0,0.71418244]
[1758299324857,1.48247426,116050.0,116040.0,0.73547244]
[1758299325262,1.48247426,116050.0,116040.0,0.41250838]
[1758299325559,1.48247426,116050.0,116040.0,0.74927244]
[1758299325950,1.48247426,116050.0,116040.0,0.41250838]
[1758299326150,1.48247426,116050.0,116040.0,0.74927244]
[1758299326860,1.47248426,116050.0,116040.0,0.74927244]
[1758299327057,0.68988426,116050.0,116040.0,0.74927244]
[1758299327261,1.47248426,116050.0,116040.0,0.74927244]
[1758299327855,0.68988426,116050.0,116040.0,0.74927244]
[1758299328163,1.1357202,116050.0,116040.0,0.74927244]
[1758299328362,1.47248426,116050.0,116040.0,0.74927244]
[1758299331762,1.47248426,116050.0,116040.0,0.41250838]
[1758299332062,1.47248426,116050.0,116040.0,0.74927244]
[1758299333261,1.1357202,116050.0,116040.0,0.74927244]
[1758299333460,1.47248426,116050.0,116040.0,0.74927244]
[1758299336769,0.3531202,116050.0,116040.0,0.74927244]
[1758299336967,0.68988426,116050.0,116040.0,0.74927244]
[1758299337163,1.47244426,116050.0,116040.0,0.74927244]
[1758299337368,1.47244426,116050.0,116040.0,1.0860365]
[1758299338474,0.68988426,116050.0,116040.0,1.0860365]
[1758299338769,1.47248426,116050.0,116040.0,1.0860365]
[1758299339665,1.47248426,116050.0,116040.0,0.41250838]
[1758299339971,1.47248426,116050.0,116040.0,1.0860365]
[1758299340172,1.47248426,116050.0,116040.0,0.74927244]
[1758299342174,1.1357202,116050.0,116040.0,0.74927244]
[1758299342474,1.47248426,116050.0,116040.0,0.74927244]
[1758299343176,1.47248426,116050.0,116040.0,0.41250838]
[1758299343378,1.47248426,116050.0,116040.0,0.74927244]
[1758299343577,1.1357202,116050.0,116040.0,0.74927244]
[1758299343772,1.47248426,116050.0,116040.0,0.74927244]
[1758299344776,1.47248426,116050.0,116040.0,0.71418244]
[1758299345175,1.47248426,116050.0,116040.0,0.73638244]
[1758299345881,1.47248426,116050.0,116040.0,0.74957244]
[1758299350380,1.47248426,116050.0,116040.0,0.41280838]
[1758299350671,0.11961352,116040.0,116030.0,0.43107769]
[1758299350872,0.79314164,116040.0,116030.0,0.07027769]
[1758299351079,0.1021351,116030.0,116020.0,0.71122406]
[1758299351381,1.22141916,116030.0,116020.0,0.73342406]
[1758299352375,1.22141916,116030.0,116020.0,0.74223434]
[1758299353185,0.43889916,116030.0,116020.0,0.74223434]
[1758299353681,1.22141916,116030.0,116020.0,0.74623434]
[1758299353871,1.22141916,116030.0,116020.0,0.74823434]
[1758299354382,1.22141916,116030.0,116020.0,0.74423434]
[1758299355283,1.22141916,116030.0,116020.0,0.40747028]
[1758299355484,1.22141916,116030.0,116020.0,0.74423434]
[1758299355685,1.22141916,116030.0,116020.0,0.74323434]
[1758299356285,1.22137916,116030.0,116020.0,0.74323434]
[1758299356885,0.43885916,116030.0,116020.0,0.74323434]
[1758299357186,1.22137916,116030.0,116020.0,0.74323434]
[1758299358975,0.8846151,116030.0,116020.0,0.74323434]
[1758299359182,1.22137916,116030.0,116020.0,0.40647028]
[1758299359381,1.22137916,116030.0,116020.0,0.74323434]
[1758299363091,0.8846151,116030.0,116020.0,0.74323434]
[1758299363288,0.43885916,116030.0,116020.0,0.74323434]
[1758299363489,1.22141916,116030.0,116020.0,0.74323434]
[1758299363884,1.22141916,116030.0,116020.0,0.40647028]
[1758299364084,1.22141916,116030.0,116020.0,0.74323434]
[1758299365791,0.1020951,116030.0,116020.0,0.74323434]
[1758299366091,1.22141916,116030.0,116020.0,1.0799984]
[1758299366880,0.43885916,116030.0,116020.0,1.0799984]
[1758299367081,1.22141916,116030.0,116020.0,1.0799984]
[1758299368492,0.1020951,116030.0,116020.0,1.0799984]
[1758299369097,1.22141916,116030.0,116020.0,1.0799984]
[1758299370494,0.1020951,116030.0,116020.0,1.0799984]
[1758299370685,1.22141916,116030.0,116020.0,1.0799984]
[1758299370994,0.8846551,116030.0,116020.0,1.0799984]
[1758299373890,0.8846551,116030.0,116020.0,0.7434529]
[1758299382098,0.1020951,116030.0,116020.0,0.7434529]
[1758299382298,0.8846151,116030.0,116020.0,0.7434529]
[1758299392009,0.8846151,116030.0,116020.0,0.40647028]
[1758299392209,0.8846151,116030.0,116020.0,0.7434529]
[1758299400816,0.8846151,116030.0,116020.0,0.40647028]
[1758299401114,0.8846151,116030.0,116020.0,0.7434529]
[1758299409818,0.1020951,116030.0,116020.0,0.7434529]
[1758299410017,0.8844151,116030.0,116020.0,0.7434529]
[1758299411214,0.1020951,116030.0,116020.0,0.7434529]
[1758299411521,0.8844151,116030.0,116020.0,0.7434529]
[1758299415019,0.8844151,116030.0,116020.0,0.40647028]
[1758299415324,0.8844151,116030.0,116020.0,0.7434529]
[1758299416224,0.8844151,116030.0,116020.0,0.40647028]
[1758299416410,0.8844151,116030.0,116020.0,0.7434529]
[1758299418627,0.8844151,116030.0,116020.0,0.40647028]
[1758299418823,0.8844151,116030.0,116020.0,0.7434529]
[1758299421223,0.8843351,116030.0,116020.0,0.7434529]
[1758299421429,0.8843351,116030.0,116020.0,0.04567028]
[1758299421628,0.8843351,116030.0,116020.0,1.1042529]
[1758299422221,0.8843351,116030.0,116020.0,0.76727028]
[1758299422422,0.8843351,116030.0,116020.0,1.1042529]
[1758299423025,0.8843351,116030.0,116020.0,0.76727028]
[1758299423225,0.8843351,116030.0,116020.0,1.1042529]
[1758299424026,0.90145525,116030.0,116020.0,1.1042529]
[1758299424321,0.90145525,116030.0,116020.0,0.76727028]
[1758299424727,0.90145525,116030.0,116020.0,1.1042529]
[1758299425116,0.90145525,116030.0,116020.0,0.76727028]
[1758299425320,0.90145525,116030.0,116020.0,1.1042529]
[1758299426730,0.90145525,116030.0,116020.0,0.76727028]
[1758299427132,0.90145525,116030.0,116020.0,1.1042529]
[1758299427631,0.90145525,116030.0,116020.0,0.76727028]
[1758299427831,0.90145525,116030.0,116020.0,1.1042529]
[1758299428134,0.90145525,116030.0,116020.0,0.76727028]
[1758299428430,0.90145525,116030.0,116020.0,1.1042529]
[1758299431034,0.90145525,116030.0,116020.0,0.76727028]
[1758299431531,0.90145525,116030.0,116020.0,1.1042529]
[1758299432233,0.90145525,116030.0,116020.0,0.76727028]
[1758299432434,0.90145525,116030.0,116020.0,1.1042529]
[1758299433134,0.11921525,116030.0,116020.0,1.1042529]
[1758299433339,0.90145525,116030.0,116020.0,1.1042529]
[1758299434836,0.90145525,116030.0,116020.0,0.76727028]
[1758299435037,0.90145525,116030.0,116020.0,1.1042529]
[1758299435742,0.90145525,116030.0,116020.0,1.44118398]
[1758299439244,0.90145525,116030.0,116020.0,0.76727028]
[1758299439640,1.2384121,116030.0,116020.0,1.44118398]
[1758299439847,0.90145525,116030.0,116020.0,1.44118398]
[1758299440544,0.90145525,116030.0,116020.0,0.76727028]
[1758299441046,0.90145525,116030.0,116020.0,1.44018398]
[1758299441546,0.90145525,116030.0,116020.0,0.76627028]
[1758299441747,0.90145525,116030.0,116020.0,1.44218398]
[1758299442349,0.90145525,116030.0,116020.0,1.44018398]
[1758299442542,0.90145525,116030.0,116020.0,1.44118398]
[1758299442748,0.90145525,116030.0,116020.0,1.44218398]
[1758299444658,0.11921525,116030.0,116020.0,1.44218398]
[1758299444861,0.90337525,116030.0,116020.0,1.52833648]
[1758299446859,0.90337525,116030.0,116020.0,1.44218398]
[1758299447655,0.90337525,116030.0,116020.0,0.76827028]
[1758299447861,0.90337525,116030.0,116020.0,1.44218398]
[1758299448260,0.90337525,116030.0,116020.0,0.76827028]
[1758299448463,0.90337525,116030.0,116020.0,1.44218398]
[1758299449661,0.90337525,116030.0,116020.0,0.76827028]
[1758299450062,0.90337525,116030.0,116020.0,1.44218398]
[1758299453764,0.90337525,116030.0,116020.0,0.76827028]
[1758299453963,0.90337525,116030.0,116020.0,1.44218398]
[1758299455168,0.90337525,116030.0,116020.0,0.76827028]
[1758299455372,0.90337525,116030.0,116020.0,1.44218398]
[1758299458269,0.90337525,116030.0,116020.0,0.76827028]
[1758299458774,1.2403321,116030.0,116020.0,1.44218398]
[1758299460080,1.2403321,116030.0,116020.0,1.44118398]
[1758299460265,1.2413321,116030.0,116020.0,1.44118398]
[1758299461273,1.2413321,116030.0,116020.0,1.44018398]
[1758299462574,1.2413321,116030.0,116020.0,0.76627028]
[1758299462769,1.2413321,116030.0,116020.0,1.10322713]
[1758299463073,1.4913321,116030.0,116020.0,1.10322713]
[1758299464270,1.4913321,116030.0,116020.0,0.76627028]
[1758299464573,1.4913321,116030.0,116020.0,1.10322713]
[1758299465169,1.4913321,116030.0,116020.0,0.74407028]
[1758299465375,1.4913321,116030.0,116020.0,1.08102713]
[1758299465575,1.83827895,116030.0,116020.0,0.7216]
[1758299465769,1.5013221,116030.0,116020.0,0.7216]
[1758299466372,1.5013221,116030.0,116020.0,0.3608]
[1758299466574,0.1021425,116020.0,116010.0,0.40356408]
[1758299466771,0.7760562,116020.0,116010.0,0.40356408]
[1758299467676,0.7760562,116020.0,116010.0,0.74052093]
[1758299467879,0.7760562,116020.0,116010.0,0.74152093]
[1758299468176,0.7760562,116020.0,116010.0,0.76457093]
[1758299468978,0.7760562,116020.0,116010.0,0.76557093]
[1758299470479,0.1021425,116020.0,116010.0,0.76557093]
[1758299470682,0.7760562,116020.0,116010.0,0.76557093]
[1758299471072,0.7760562,116020.0,116010.0,0.40556408]
[1758299471472,0.7760562,116020.0,116010.0,0.3832649]
[1758299472782,1.5601762,116020.0,116010.0,0.3832649]
[1758299475969,0.7760562,116020.0,116010.0,0.3832649]
[1758299476175,1.5599762,116020.0,116010.0,0.3832649]
[1758299476881,0.7760562,116020.0,116010.0,0.3832649]
[1758299477380,1.5599362,116020.0,116010.0,0.3832649]
[1758299477583,0.7760562,116020.0,116010.0,0.3832649]
[1758299477784,1.5598562,116020.0,116010.0,0.3832649]
[1758299478283,0.7760562,116020.0,116010.0,0.3832649]
[1758299478474,1.5598562,116020.0,116010.0,0.3832649]
[1758299479087,1.5598562,116020.0,116010.0,0.3628]
[1758299479780,0.8859425,116020.0,116010.0,0.3628]
[1758299479985,1.5598562,116020.0,116010.0,0.3628]
[1758299482082,1.5598562,116020.0,116010.0,1e-07]
[1758299482272,2.50761305,116020.0,116010.0,1e-07]
[1758299483787,1.72381305,116020.0,116010.0,1e-07]
[1758299483987,2.50737305,116020.0,116010.0,1e-07]
[1758299485187,2.50749305,116020.0,116010.0,1e-07]
[1758299488085,1.72381305,116020.0,116010.0,1e-07]
[1758299488487,2.50729305,116020.0,116010.0,1e-07]
[1758299488688,1.72381305,116020.0,116010.0,1e-07]
[1758299488892,2.50729305,116020.0,116010.0,1e-07]
[1758299492295,1.72381305,116020.0,116010.0,1e-07]
[1758299492505,2.50713305,116020.0,116010.0,1e-07]
[1758299493893,2.53338864,116020.0,116010.0,1e-07]
[1758299494288,1.75006864,116020.0,116010.0,1e-07]
[1758299494490,2.53330864,116020.0,116010.0,1e-07]
[1758299495894,2.19701413,116020.0,116010.0,1e-07]
[1758299497398,2.19693413,116020.0,116010.0,1e-07]
[1758299498100,1.41377413,116020.0,116010.0,1e-07]
[1758299498299,2.19685413,116020.0,116010.0,1e-07]
[1758299499400,1.94685413,116020.0,116010.0,1e-07]
[1758299505401,3.76297413,116020.0,116010.0,1e-07]
[1758299506197,3.79399342,116020.0,116010.0,1e-07]
[1758299506600,3.01091342,116020.0,116010.0,1e-07]
[1758299506800,3.79379342,116020.0,116010.0,1e-07]
[1758299511306,4.01277413,116020.0,116010.0,1e-07]
[1758299511804,0.10216,115990.0,115980.0,0.0001]
[1758299512002,0.1021674,115980.0,115970.0,0.39681]
[1758299512203,0.43945542,115980.0,115970.0,0.39681]
[1758299513808,0.43945542,115980.0,115970.0,0.40545358]
[1758299514199,0.43945542,115980.0,115970.0,0.40845358]
[1758299514601,0.43945542,115980.0,115970.0,0.41545358]
[1758299514996,0.43945542,115980.0,115970.0,0.48424386]
[1758299516406,1.22233542,115980.0,115970.0,0.48424386]
[1758299516705,0.8850474,115980.0,115970.0,0.48424386]
[1758299518408,1.22233542,115980.0,115970.0,0.48424386]
[1758299518613,1.22233542,115980.0,115970.0,0.40681]
[1758299519207,1.22233542,115980.0,115970.0,0.3708]
[1758299520412,1.22233542,115980.0,115970.0,0.39377]
[1758299520717,0.1021674,115980.0,115970.0,0.40777]
[1758299520918,1.22233542,115980.0,115970.0,0.40777]
[1758299523517,0.1021674,115980.0,115970.0,0.40777]
[1758299523713,0.8850474,115980.0,115970.0,0.99505802]
[1758299524020,0.8850474,115980.0,115970.0,0.65773]
[1758299524712,1.22233542,115980.0,115970.0,0.65773]
[1758299525118,0.8850474,115980.0,115970.0,0.65773]
[1758299527529,1.22233542,115980.0,115970.0,0.65773]
[1758299529628,0.43945542,115980.0,115970.0,0.65773]
[1758299529828,0.1021674,115980.0,115970.0,0.65773]
[1758299530029,0.1021674,115980.0,115970.0,0.99501802]
[1758299530234,0.8877274,115980.0,115970.0,0.99501802]
[1758299530934,0.8876474,115980.0,115970.0,0.99501802]
[1758299532831,0.1021674,115980.0,115970.0,0.83120172]
[1758299533030,0.8876074,115980.0,115970.0,0.74501802]
[1758299534036,0.80143,115980.0,115970.0,0.83120172]
[1758299534337,0.8876063,115980.0,115970.0,0.83120172]
[1758299534740,0.8876063,115980.0,115970.0,0.74501802]
[1758299539736,0.8712163,115980.0,115970.0,1.08120182]
[1758299540039,0.8712163,115980.0,115970.0,1.41848984]
[1758299540238,0.8712163,115980.0,115970.0,1.68818984]
[1758299540633,0.78504,115980.0,115970.0,1.68818984]
[1758299541837,0.78504,115980.0,115970.0,1.70810522]
[1758299544436,0.78504,115980.0,115970.0,1.3708172]
[1758299545945,0.78504,115980.0,115970.0,1.70810522]
[1758299546644,0.78504,115980.0,115970.0,1.3708172]
[1758299546944,0.78504,115980.0,115970.0,1.70810522]
[1758299554242,0.78504,115980.0,115970.0,1.70850729]
[1758299555850,0.78504,115980.0,115970.0,1.70824983]
[1758299557346,0.78504,115980.0,115970.0,1.03393125]
[1758299557651,0.78504,115980.0,115970.0,1.70824983]
[1758299557853,0.78504,115980.0,115970.0,1.7077669]
[1758299559346,0.78504,115980.0,115970.0,1.4577669]
[1758299559546,0.78504,115980.0,115970.0,1.45799686]
[1758299562055,0.0861702,115990.0,115980.0,0.1218374]
[1758299562255,0.8709702,115990.0,115980.0,1.15695598]
[1758299563256,0.8709702,115990.0,115980.0,1.16095598]
[1758299563955,0.8709702,115990.0,115980.0,1.43265598]
[1758299565155,1.47411949,115990.0,115980.0,0.67216]
[1758299565555,1.82126878,115990.0,115980.0,0.3668]
[1758299565756,1.48410949,115990.0,115980.0,0.3668]
[1758299578465,1.23410949,115990.0,115980.0,0.3668]
[1758299581159,1.57126878,115990.0,115980.0,0.3668]
[1758299581365,1.57126878,115990.0,115980.0,0.006]
[1758299581366,2.18206878,115990.0,115980.0,0.006]
[1758299582063,2.18174878,115990.0,115980.0,0.006]
[1758299584570,1.39726878,115990.0,115980.0,0.006]
[1758299584868,2.19025721,115990.0,115980.0,0.006]
[1758299585971,1.40593721,115990.0,115980.0,0.006]
[1758299586169,2.19017721,115990.0,115980.0,0.006]
[1758299587472,1.40593721,115990.0,115980.0,0.006]
[1758299587672,2.19013721,115990.0,115980.0,0.006]
[1758299591375,1.40593721,115990.0,115980.0,0.006]
[1758299591576,2.18997721,115990.0,115980.0,0.006]
[1758299591977,4.0934565,115990.0,115980.0,0.006]
[1758299592183,4.0934565,115990.0,115950.0,0.44373963]
[1758299592184,0.1021819,115960.0,115950.0,0.46510963]
[1758299592383,1.56054048,115960.0,115950.0,0.80206892]
[1758299592673,1.22338119,115960.0,115950.0,0.80206892]
[1758299592879,0.8861819,115960.0,115950.0,0.46490963]
[1758299593181,1.22334119,115960.0,115950.0,0.46490963]
[1758299593376,1.22334119,115960.0,115950.0,0.80206892]
[1758299593576,1.22434119,115960.0,115950.0,0.83063279]
[1758299594881,1.22434119,115960.0,115950.0,0.4934735]
[1758299595078,1.22434119,115960.0,115950.0,0.83063279]
[1758299598080,0.44034119,115960.0,115950.0,0.83063279]
[1758299598280,1.22446119,115960.0,115950.0,0.83063279]
[1758299598477,1.22446119,115960.0,115950.0,0.4934735]
[1758299598783,1.22446119,115960.0,115950.0,0.48490963]
[1758299598784,1.56162048,115960.0,115950.0,0.48490963]
[1758299599379,1.56162048,115960.0,115950.0,0.02]
[1758299599579,1.89877977,115960.0,115950.0,0.02]
[1758299599777,2.50957977,115960.0,115950.0,0.02]
[1758299601075,2.17242048,115960.0,115950.0,0.02]
[1758299602077,2.50957977,115960.0,115950.0,0.02]
[1758299602786,2.17242048,115960.0,115950.0,0.02]
[1758299603177,2.50957977,115960.0,115950.0,1e-07]
[1758299603578,2.54581627,115960.0,115950.0,1e-07]
[1758299603782,2.55053627,115960.0,115950.0,1e-07]
[1758299604085,1.76569627,115960.0,115950.0,1e-07]
[1758299604279,1.76569627,115960.0,115940.0,0.0001]
[1758299604280,0.1021899,115950.0,115940.0,0.0001]
[1758299604479,0.1021973,115940.0,115930.0,0.80987949]
[1758299604680,1.22419659,115940.0,115930.0,0.80117262]
[1758299604879,1.22419659,115940.0,115930.0,0.46401333]
[1758299605080,1.56135588,115940.0,115930.0,0.46401333]
[1758299606181,0.8870373,115940.0,115930.0,0.46401333]
[1758299606386,1.56135588,115940.0,115930.0,0.46401333]
[1758299606987,1.54536588,115940.0,115930.0,0.42923333]
[1758299607188,1.56135588,115940.0,115930.0,0.45114333]
[1758299607389,1.57435588,115940.0,115930.0,4e-05]
[1758299607588,1.57435588,115940.0,115930.0,0.00104]
[1758299607890,3.39107588,115940.0,115930.0,0.00104]
[1758299608090,2.96703588,115940.0,115930.0,0.00104]
[1758299608289,3.75167588,115940.0,115930.0,0.00104]
[1758299609185,2.96703588,115940.0,115930.0,0.00104]
[1758299609384,3.75159588,115940.0,115930.0,0.00104]
[1758299609590,2.96703588,115940.0,115930.0,0.00104]
[1758299609792,3.75159588,115940.0,115930.0,0.00104]
[1758299610193,3.75163588,115940.0,115930.0,0.00104]
[1758299610790,3.39083588,115940.0,115930.0,0.00104]
[1758299611194,3.75163588,115940.0,115930.0,0.00104]
[1758299614088,3.75163588,115940.0,115930.0,0.00092]
[1758299614292,3.73863588,115940.0,115930.0,0.00092]
[1758299614495,3.75163588,115940.0,115930.0,0.00092]
[1758299614996,0.1022047,115930.0,115920.0,0.39568]
[1758299615197,0.43936399,115930.0,115920.0,0.39558]
[1758299615901,0.4398622,115930.0,115920.0,0.39558]
[1758299616803,0.4418622,115930.0,115920.0,0.39558]
[1758299617000,0.8884447,115930.0,115920.0,0.9832375]
[1758299617204,0.1042047,115930.0,115920.0,0.9852375]
[1758299618104,0.8885247,115930.0,115920.0,0.9852375]
[1758299618295,0.002,115930.0,115920.0,1.0714597]
[1758299618498,0.0882147,115930.0,115920.0,1.4091172]
[1758299618703,0.0882147,115930.0,115920.0,1.0714597]
[1758299618904,0.8725747,115930.0,115920.0,1.0714597]
[1758299619406,0.8885647,115930.0,115920.0,0.8214597]
[1758299619602,0.8886047,115930.0,115920.0,0.8214597]
[1758299620307,0.8886047,115930.0,115920.0,0.7352375]
[1758299630318,0.0882147,115930.0,115920.0,1.4091173]
[1758299630615,0.8719747,115930.0,115920.0,1.4091173]
[1758299630807,0.8719747,115930.0,115920.0,1.0714598]